bitfinex/quotes_ETHUSD_20250214
["timestamp","ask_amount","ask_price","bid_price","bid_amount"]
[1739535084762,0.8248,2691.4,2691.1,3.71586]
[1739535085266,0.8248,2691.4,2691.2,3.7157]
[1739535085579,0.8248,2691.4,2691.3,3.71567]
[1739535086888,3.71527,2691.6,2691.2,3.7157]
[1739535087176,3.71546,2691.5,2691.0,7.43201]
[1739535087474,0.8248,2691.4,2691.0,3.71599]
[1739535087836,0.8248,2691.4,2691.0,7.43198]
[1739535088863,0.8248,2691.4,2691.1,3.7159]
[1739535089471,0.8248,2691.4,2691.0,3.71599]
[1739535089675,0.8248,2691.4,2691.0,3.71598]
[1739535089853,0.8248,2691.4,2691.0,7.43197]
[1739535090055,0.8248,2691.4,2691.0,3.71598]
[1739535090891,0.8248,2691.4,2691.0,7.432]
[1739535091194,4.54034,2691.4,2690.9,3.71622]
[1739535092410,8.25597,2691.4,2690.9,3.71622]
[1739535092569,4.54034,2691.4,2690.9,3.71622]
[1739535093125,0.8248,2691.4,2691.0,3.71602]
[1739535093599,4.54034,2691.4,2691.0,3.71602]
[1739535093796,0.8248,2691.4,2691.0,3.71602]
[1739535093994,0.8248,2691.4,2690.7,0.28641412]
[1739535094201,0.8248,2691.4,2691.1,3.7159]
[1739535094396,0.8248,2691.4,2691.0,3.71608]
[1739535094979,4.54046,2691.4,2690.8,4.44553041]
[1739535095188,3.71569,2691.3,2690.8,4.44553041]
[1739535095389,3.71569,2691.3,2690.8,8.16182041]
[1739535095599,4.54046,2691.4,2690.8,4.44551041]
[1739535095805,4.54042,2691.4,2690.9,3.71616]
[1739535096013,3.7157,2691.3,2690.8,7.43253]
[1739535096380,3.7157,2691.3,2690.8,3.71626]
[1739535096698,3.7157,2691.3,2690.9,3.71622]
[1739535097121,1.57717931,2691.4,2690.7,4.00290412]
[1739535097475,5.29278931,2691.4,2690.9,3.71615]
[1739535097772,6.19360924,2691.4,2690.9,3.71615]
[1739535098173,3.71571,2691.3,2690.9,3.71615]
[1739535101686,0.7957,2691.2,2690.7,3.71649]
[1739535101852,4.51152,2691.2,2690.7,3.71641]
[1739535102186,0.7957,2691.2,2690.7,3.71641]
[1739535102488,3.71602,2691.1,2690.7,3.71641]
[1739535102788,1.65319924,2691.4,2690.8,3.71626]
[1739535102952,4.46801931,2691.4,2690.8,3.71626]
[1739535103466,0.7957,2691.3,2690.9,3.71614]
[1739535104448,4.51143,2691.3,2690.8,3.71626]
[1739535105665,3.71583,2691.2,2690.8,3.71626]
[1739535108006,3.71583,2691.2,2690.7,3.71649]
[1739535109762,3.71583,2691.2,2690.8,3.71635]
[1739535110418,0.7957,2691.3,2690.8,3.71635]
[1739535110549,0.7957,2691.3,2691.0,3.71604]
[1739535110911,1.00550793,2691.3,2690.9,3.71617]
[1739535111416,1.00550793,2691.3,2690.8,3.71623]
[1739535111417,4.72117793,2691.3,2690.8,3.71623]
[1739535111555,1.00550793,2691.3,2690.8,3.71623]
[1739535111956,1.00550793,2691.3,2690.9,3.71622]
[1739535113394,1.00550793,2691.3,2690.8,3.71634]
[1739535113592,4.72121793,2691.3,2690.8,3.71634]
[1739535113788,1.00550793,2691.3,2690.8,3.71627]
[1739535114190,4.72118793,2691.3,2690.8,3.71627]
[1739535114430,4.72118793,2691.3,2690.8,7.43253]
[1739535114632,1.00550793,2691.3,2690.9,3.71615]
[1739535115134,1.00550793,2691.3,2690.9,3.71621]
[1739535115916,1.00550793,2691.3,2690.9,3.71614]
[1739535117623,4.72118793,2691.3,2690.9,3.71614]
[1739535117951,1.00550793,2691.3,2690.9,3.71614]
[1739535121328,4.72127793,2691.3,2690.8,3.71636]
[1739535121527,0.7957,2691.3,2690.4,9.49888915]
[1739535121732,0.7957,2691.3,2691.2,3.71581]
[1739535121950,0.8174,2691.6,2691.3,3.7156]
[1739535123287,0.8174,2691.6,2691.1,4.00543]
[1739535123288,0.73203674,2691.5,2691.2,3.7158]
[1739535123845,0.73203674,2691.5,2691.4,3.71553]
[1739535124948,5.32,2691.7,2691.6,3.71526]
[1739535125163,0.7747085,2691.8,2691.6,3.71526]
[1739535125491,0.7747085,2691.8,2691.6,3.71516]
[1739535126964,8.5e-06,2691.8,2691.6,3.71516]
[1739535127193,8.5e-06,2691.8,2691.7,3.71512]
[1739535128491,8.5e-06,2691.8,2691.6,3.71525]
[1739535128696,8.5e-06,2691.8,2691.6,7.43044]
[1739535128914,8.5e-06,2691.8,2691.6,3.71519]
[1739535131885,8.5e-06,2691.8,2691.5,3.71539]
[1739535132216,8.5e-06,2691.8,2691.4,3.71544]
[1739535132402,8.5e-06,2691.8,2691.6,3.71525]
[1739535134838,8.5e-06,2691.8,2691.7,3.71512]
[1739535135134,8.5e-06,2691.8,2691.6,3.71517]
[1739535137739,8.5e-06,2691.8,2691.6,7.43036]
[1739535137937,8.5e-06,2691.8,2691.6,3.71517]
[1739535144206,8.5e-06,2691.8,2691.7,3.71512]
[1739535145266,8.5e-06,2691.8,2691.7,4.458149]
[1739535146254,8.5e-06,2691.8,2691.7,3.71512]
[1739535146421,0.7955085,2691.8,2691.4,5.62225971]
[1739535146626,0.7955085,2691.8,2691.5,3.71526]
[1739535146949,0.7955085,2691.8,2691.6,3.71522]
[1739535154666,8.5e-06,2691.8,2691.7,3.71512]
[1739535155185,8.5e-06,2691.8,2691.6,4.92239679]
[1739535155358,8.5e-06,2691.8,2691.7,3.71512]
[1739535156199,8.5e-06,2691.8,2691.6,4.92241679]
[1739535156516,8.5e-06,2691.8,2691.6,4.92233679]
[1739535156699,8.5e-06,2691.8,2691.7,4.13231911]
[1739535159915,8.5e-06,2691.8,2691.7,0.41719911]
[1739535160114,8.5e-06,2691.8,2691.6,8.63757679]
[1739535160514,8.5e-06,2691.8,2691.7,3.71512]
[1739535160814,8.5e-06,2691.8,2691.7,4.00462]
[1739535161014,8.5e-06,2691.8,2691.7,7.04176949]
[1739535161668,8.5e-06,2691.8,2691.7,7.00462]
[1739535161873,8.5e-06,2691.8,2691.7,8.23445696]
[1739535162073,8.5e-06,2691.8,2691.7,8.19731568]
[1739535168386,8.5e-06,2691.8,2691.7,4.90781568]
[1739535168739,8.5e-06,2691.8,2691.7,3.71512]
[1739535169486,8.5e-06,2691.8,2691.7,6.75226482]
[1739535169698,8.5e-06,2691.8,2691.7,9.53054042]
[1739535169881,8.5e-06,2691.8,2691.7,9.4933956]
[1739535171121,8.5e-06,2691.8,2691.7,7.00462]
[1739535171332,8.5e-06,2691.8,2691.7,8.076599]
[1739535171497,8.5e-06,2691.8,2691.7,10.5653746]
[1739535178702,8.5e-06,2691.8,2691.7,8.076599]
[1739535178854,8.5e-06,2691.8,2691.7,6.71512]
[1739535179197,8.5e-06,2691.8,2691.7,3.71512]
[1739535179377,0.8179085,2691.8,2691.6,3.71526]
[1739535179562,0.8179085,2691.8,2691.6,3.71519]
[1739535179893,0.8179085,2691.8,2691.7,3.71512]
[1739535181149,0.8179085,2691.8,2691.5,3.7154]
[1739535181373,0.8179085,2691.8,2691.6,3.71516]
[1739535183690,0.8179085,2691.8,2691.4,3.71545]
[1739535183899,0.8179085,2691.8,2691.4,7.4309]
[1739535184396,0.8179085,2691.8,2691.5,3.71539]
[1739535184954,0.8179085,2691.8,2691.5,3.7154]
[1739535185698,0.8179085,2691.8,2691.4,3.71545]
[1739535185854,0.8179085,2691.8,2691.4,7.43091]
[1739535186302,0.8179085,2691.8,2691.4,3.71545]
[1739535186474,0.8179085,2691.8,2691.3,4.21478]
[1739535186475,0.8192,2691.7,2691.3,4.21478]
[1739535187062,0.8192,2691.7,2691.4,3.71548]
[1739535187899,0.8192,2691.7,2691.3,4.2148]
[1739535188384,5.03309264,2691.7,2691.3,0.4992]
[1739535188586,0.8192,2691.6,2691.3,0.4992]
[1739535189905,3.71526,2691.6,2691.3,0.4992]
[1739535190059,0.8192,2691.5,2691.3,0.4992]
[1739535191785,3.71553,2691.4,2691.3,0.4992]
[1739535192118,5.277824,2691.4,2691.3,0.4992]
[1739535199476,8.277824,2691.4,2691.3,0.4992]
[1739535217051,1.562294,2691.4,2691.3,0.4992]
[1739535217287,5.277824,2691.4,2691.3,0.4992]
[1739535217821,1.562294,2691.4,2691.3,0.4992]
[1739535218001,5.277824,2691.4,2691.3,0.4992]
[1739535223590,6.48606672,2691.4,2691.3,0.4992]
[1739535228093,5.277824,2691.4,2691.3,0.4992]
[1739535229222,6.48606672,2691.4,2691.3,0.4992]
[1739535229521,5.277824,2691.4,2691.3,0.4992]
[1739535230289,0.743094,2691.4,2691.3,0.4992]
[1739535230486,0.7440805,2691.5,2691.3,0.4992]
[1739535230883,0.7440805,2691.5,2691.4,4.00503]
[1739535231197,8.5e-06,2691.8,2691.5,3.71533]
[1739535231393,8.5e-06,2691.8,2691.5,7.43063]
[1739535231919,8.5e-06,2691.8,2691.5,3.7153]
[1739535232700,8.5e-06,2691.8,2691.5,4.65808227]
[1739535233330,8.5e-06,2691.8,2691.4,0.2895]
[1739535233626,3.71513,2691.7,2691.4,0.2895]
[1739535233826,4.5384185,2691.8,2691.4,0.2895]
[1739535234421,3.71517,2691.7,2691.4,0.2895]
[1739535235028,3.71536,2691.6,2691.4,0.2895]
[1739535235325,3.71536,2691.6,2691.3,0.4992]
[1739535235536,3.71541,2691.5,2691.3,0.4992]
[1739535236290,3.71553,2691.4,2691.3,0.4992]
[1739535238093,5.364364,2691.4,2691.3,0.4992]
[1739535239137,6.0975376,2691.4,2691.3,0.4992]
[1739535244952,12.30136038,2691.4,2691.3,0.4992]
[1739535248212,17.62136038,2691.4,2691.3,0.4992]
[1739535261625,17.63636038,2691.4,2691.3,0.4992]
[1739535265564,18.18636038,2691.4,2691.3,0.4992]
[1739535267681,16.53648495,2691.4,2691.3,0.4992]
[1739535268331,3.71664,2690.6,2690.5,0.2895]
[1739535270971,3.71687,2690.5,2689.9,0.2895]
[1739535271178,3.71687,2690.5,2690.1,0.2895]
[1739535272426,3.71664,2690.6,2690.1,0.2895]
[1739535272580,3.71705,2690.3,2690.1,0.2895]
[1739535272923,3.71719,2690.2,2690.1,0.2895]
[1739535273804,3.20554436,2690.4,2689.9,0.2895]
[1739535274009,3.71747,2690.0,2689.9,0.2895]
[1739535275501,4.44342321,2690.0,2689.9,0.2895]
[1739535275702,5.25951253,2690.0,2689.9,0.2895]
[1739535276795,1.54204253,2690.0,2689.9,0.2895]
[1739535277000,0.72595321,2690.0,2689.9,0.2895]
[1739535277940,4.44342321,2690.0,2689.9,0.2895]
[1739535278720,4.44342321,2690.0,2689.4,3.71821]
[1739535278721,3.71761,2689.9,2689.5,0.2895]
[1739535279339,0.72595321,2690.0,2689.5,4.00764]
[1739535279771,4.44352321,2690.0,2689.5,4.00764]
[1739535280622,3.7177,2689.9,2689.5,0.2895]
[1739535280822,3.71774,2689.8,2689.5,0.2895]
[1739535281453,3.7184,2689.4,2689.3,0.2895]
[1739535282929,3.7184,2689.4,2688.9,3.71892]
[1739535282930,3.7184,2689.4,2689.1,0.2895]
[1739535283148,3.71843,2689.3,2689.1,0.2895]
[1739535283743,3.71857,2689.2,2688.8,0.2895]
[1739535285381,3.46977,2689.2,2688.8,0.2895]
[1739535285794,0.74092553,2689.1,2688.8,0.2895]
[1739535288760,4.45964553,2689.1,2688.8,0.2895]
[1739535288960,0.74092553,2689.1,2688.8,0.2895]
[1739535289160,4.45973553,2689.1,2688.8,0.2895]
[1739535291998,3.71899,2688.9,2688.8,0.2895]
[1739535292361,3.71899,2688.9,2688.4,3.71959]
[1739535292703,3.71886,2689.0,2688.5,0.2895]
[1739535292932,3.71901,2688.9,2688.5,0.2895]
[1739535293138,3.71887,2689.0,2688.5,0.2895]
[1739535293292,3.71887,2689.0,2688.5,4.00893]
[1739535293497,3.71887,2689.0,2688.6,3.71939]
[1739535293822,3.71887,2689.0,2688.5,0.2895]
[1739535294041,3.71887,2689.0,2688.5,4.009]
[1739535294234,3.71887,2689.0,2688.5,0.2895]
[1739535294535,3.719,2688.9,2688.5,0.2895]
[1739535294708,3.71928,2688.7,2688.5,0.2895]
[1739535295897,3.71928,2688.7,2688.3,0.2895]
[1739535298384,0.73552139,2688.5,2688.3,0.2895]
[1739535299333,0.73552139,2688.5,2688.2,0.7518152]
[1739535299729,1.62886353,2688.5,2688.2,0.7518152]
[1739535300090,1.62886353,2688.5,2687.8,4.00989]
[1739535300091,3.71989,2688.3,2687.8,4.00989]
[1739535300290,3.72002,2688.2,2687.8,0.2895]
[1739535300626,3.71989,2688.3,2687.8,4.01]
[1739535300832,7.43981,2688.3,2687.8,4.01]
[1739535301031,3.71997,2688.2,2687.8,4.01]
[1739535301432,6.05552139,2688.5,2687.8,0.2895]
[1739535301735,3.72118,2687.4,2686.8,3.7218]
[1739535301960,3.72118,2687.4,2686.6,3.72216]
[1739535301961,3.72116,2687.4,2686.9,0.2895]
[1739535302277,3.72116,2687.4,2686.7,0.2895]
[1739535302278,3.72142,2687.2,2686.7,0.2895]
[1739535302668,1.158316,2687.4,2686.7,4.01145]
[1739535303047,1.158316,2687.4,2686.9,3.72175]
[1739535303773,0.7592,2688.0,2687.2,0.2895]
[1739535303933,0.75861117,2687.7,2687.6,3.72079]
[1739535304159,3.98969,2688.4,2687.8,3.72048]
[1739535304365,0.7592,2688.6,2688.2,3.71986]
[1739535304563,0.73641519,2688.7,2688.2,3.49906586]
[1739535304787,1.71623744,2689.3,2688.8,3.71904]
[1739535305019,1.71623744,2689.3,2689.0,3.71876]
[1739535305020,0.95703744,2689.3,2689.0,3.71876]
[1739535305302,3.30956586,2690.1,2689.2,3.71844]
[1739535305303,3.71762,2689.9,2689.2,3.71844]
[1739535305463,3.71798,2689.7,2689.0,3.71885]
[1739535305665,3.71819,2689.5,2688.9,0.2895]
[1739535305900,3.71831,2689.4,2688.9,0.2895]
[1739535307400,4.45967901,2689.6,2688.9,0.2895]
[1739535307607,4.93264691,2689.6,2688.9,0.2895]
[1739535308103,3.71817,2689.5,2688.9,0.2895]
[1739535308775,0.74162901,2689.6,2688.9,4.00848]
[1739535308994,0.74162901,2689.6,2689.0,3.71873]
[1739535309380,4.45965901,2689.6,2689.0,3.71873]
[1739535310725,3.71816,2689.5,2689.0,3.71873]
[1739535310933,4.45964901,2689.6,2689.0,4.491454]
[1739535311133,0.74162901,2689.6,2689.0,4.491454]
[1739535311572,0.74162901,2689.6,2689.2,3.71857]
[1739535311926,0.74162901,2689.6,2689.5,0.2895]
[1739535312233,3.71752,2690.0,2689.5,0.2895]
[1739535314427,0.73247553,2689.9,2689.5,0.690269]
[1739535314630,0.73247553,2689.9,2689.5,0.2895]
[1739535315010,0.73247553,2689.9,2689.5,4.00754]
[1739535315575,4.45011553,2689.9,2689.5,0.2895]
[1739535315937,3.71783,2689.8,2689.5,0.2895]
[1739535316274,4.45011553,2689.9,2689.5,0.2895]
[1739535316516,0.73247553,2689.9,2689.5,4.00762]
[1739535317131,0.73247553,2689.9,2689.6,3.71801]
[1739535317330,0.73247553,2689.9,2689.5,4.00762]
[1739535317633,0.73247553,2689.9,2689.6,3.71798]
[1739535317974,0.73247553,2689.9,2689.5,4.00758]
[1739535319050,3.52609431,2690.2,2689.5,0.2895]
[1739535319356,3.52609431,2690.2,2690.1,7.21639586]
[1739535319492,3.71637,2690.8,2690.2,3.71719]
[1739535319675,6.71645,2690.8,2690.2,3.71719]
[1739535319875,6.71645,2690.8,2690.3,3.71703]
[1739535320069,3.71652,2690.7,2690.1,8.30978045]
[1739535320319,3.71673,2690.6,2690.1,8.30966045]
[1739535320525,3.71673,2690.6,2690.1,5.10009459]
[1739535320825,3.71671,2690.6,2690.1,1.38288459]
[1739535321023,3.7169,2690.5,2690.1,0.2895]
[1739535321712,0.7913,2690.6,2689.8,0.2895]
[1739535321916,3.71713,2690.3,2689.8,4.00716]
[1739535322118,3.71678,2690.5,2689.9,3.7176]
[1739535322413,4.469032,2690.7,2690.2,3.71709]
[1739535322590,0.752472,2690.7,2690.3,3.71705]
[1739535322786,0.752472,2690.7,2690.4,4.00641]
[1739535323173,0.752472,2690.7,2690.4,0.2895]
[1739535323374,4.469062,2690.7,2690.4,0.2895]
[1739535323596,0.752472,2690.7,2690.1,0.2895]
[1739535323803,3.71687,2690.5,2690.1,0.2895]
[1739535324815,0.752472,2690.7,2690.1,7.61702486]
[1739535325019,0.752472,2690.7,2690.3,3.71695]
[1739535325176,0.752472,2690.7,2690.3,7.43393]
[1739535325377,0.752472,2690.7,2690.3,3.71695]
[1739535326616,4.468982,2690.7,2690.3,3.71695]
[1739535326777,0.752472,2690.7,2690.3,7.43392]
[1739535326987,5.32,2691.0,2690.3,7.43392]
[1739535326988,3.71609,2691.0,2690.6,3.71662]
[1739535327187,3.71611,2691.0,2690.5,3.71677]
[1739535327496,3.71611,2691.0,2690.6,0.2895]
[1739535327700,0.7913,2691.3,2690.6,0.2895]
[1739535327897,3.71595,2691.1,2690.6,4.00613]
[1739535328097,3.71581,2691.2,2690.6,4.00613]
[1739535328349,4.47312393,2691.0,2690.6,0.2895]
[1739535328558,3.71632,2690.9,2690.6,0.2895]
[1739535328689,4.47312393,2691.0,2690.6,0.2895]
[1739535329055,0.75701393,2691.0,2690.6,4.72770959]
[1739535329345,0.75701393,2691.0,2690.7,3.71639]
[1739535329693,3.71569,2691.3,2690.8,3.71635]
[1739535329893,3.71588,2691.2,2690.6,4.72762959]
[1739535330097,3.71604,2691.1,2690.6,4.72762959]
[1739535331155,3.71613,2691.0,2690.6,1.01108959]
[1739535331329,3.71609,2691.0,2690.6,0.2895]
[1739535331660,3.71604,2691.1,2690.6,0.2895]
[1739535331802,4.478117,2691.1,2690.6,0.2895]
[1739535331987,3.71616,2691.0,2690.6,0.2895]
[1739535332931,4.478107,2691.1,2690.6,4.00607]
[1739535333091,3.71618,2691.0,2690.6,0.2895]
[1739535334312,3.71627,2690.9,2690.6,0.2895]
[1739535334719,3.71648,2690.8,2690.3,0.2895]
[1739535334945,3.71659,2690.7,2690.3,0.2895]
[1739535335259,0.8262,2691.0,2690.3,0.2895]
[1739535335545,7.43237,2691.0,2690.4,3.71682]
[1739535335748,3.71627,2690.9,2690.3,4.00646]
[1739535335901,3.71643,2690.8,2690.3,0.2895]
[1739535336302,7.4329,2690.8,2690.3,0.2895]
[1739535337971,3.71643,2690.8,2690.3,4.00655]
[1739535338331,3.71654,2690.7,2690.3,0.2895]
[1739535338715,3.71643,2690.8,2690.3,0.2895]
[1739535338921,3.71643,2690.8,2690.3,4.00654]
[1739535339271,7.43291,2690.8,2690.3,4.00654]
[1739535340582,3.71643,2690.8,2690.3,4.00654]
[1739535340739,7.43288,2690.8,2690.3,4.00654]
[1739535341280,3.7165,2690.7,2690.3,4.00654]
[1739535341765,3.7165,2690.7,2690.3,0.2895]
[1739535341981,7.43311,2690.7,2690.3,0.2895]
[1739535342181,3.7165,2690.7,2690.3,0.2895]
[1739535342798,3.71691,2690.4,2689.9,3.71753]
[1739535343103,3.71691,2690.4,2689.8,4.00718]
[1739535343268,3.7173,2690.2,2689.8,0.2895]
[1739535343473,3.71754,2690.0,2689.5,4.00766]
[1739535343652,0.8262,2690.1,2689.6,0.400766]
[1739535343857,8.2611,2690.1,2689.6,0.400766]
[1739535344036,8.2611,2690.1,2689.7,3.71788]
[1739535344037,4.54365,2690.1,2689.7,3.71788]
[1739535344240,3.71748,2690.0,2689.6,0.400766]
[1739535344648,0.8262,2690.1,2689.6,4.118696]
[1739535344847,4.54363,2690.1,2689.6,0.400766]
[1739535345126,3.71747,2690.0,2689.6,0.400766]
[1739535345330,4.54356,2690.1,2689.6,4.118746]
[1739535345553,3.71748,2690.0,2689.6,4.118746]
[1739535345781,4.47024862,2690.0,2689.6,0.400766]
[1739535346098,3.71763,2689.9,2689.5,0.2895]
[1739535346238,4.47024862,2690.0,2689.2,3.20956586]
[1739535346239,3.71825,2689.5,2689.2,0.2895]
[1739535346426,7.43649,2689.5,2688.9,4.00837]
[1739535346660,3.71824,2689.5,2688.9,4.00837]
[1739535346871,3.71824,2689.5,2689.0,3.71882]
[1739535347075,3.46944,2689.5,2689.0,4.491539]
[1739535348874,4.19912897,2689.5,2689.0,4.491539]
[1739535349774,0.72968897,2689.5,2689.0,4.491569]
[1739535350076,9.03723,2690.2,2689.2,3.20956586]
[1739535350077,6.1253,2690.2,2689.2,3.20956586]
[1739535350257,5.32,2690.2,2689.7,3.71778]
[1739535350458,5.32,2690.2,2689.9,4.00701]
[1739535350669,3.71693,2690.4,2689.9,4.00701]
[1739535350847,3.71681,2690.5,2690.0,3.71739]
[1739535351050,3.71681,2690.5,2689.9,7.72453]
[1739535351279,0.74189885,2690.4,2689.9,8.1624088]
[1739535351652,0.74189885,2690.4,2690.1,3.71731]
[1739535351974,0.74189885,2690.4,2690.2,3.71716]
[1739535352177,0.74189885,2690.4,2690.1,3.71731]
[1739535352381,0.74189885,2690.4,2690.1,4.53353088]
[1739535353274,0.74189885,2690.4,2690.1,0.81622088]
[1739535353479,0.74189885,2690.4,2689.9,8.1624088]
[1739535353480,0.74189885,2690.4,2690.0,3.71744]
[1739535355493,0.74189885,2690.4,2690.1,3.71728]
[1739535355679,0.74189885,2690.4,2690.0,3.71744]
[1739535356997,0.74189885,2690.4,2690.0,3.71739]
[1739535357299,3.71714,2690.3,2689.7,3.71788]
[1739535357665,3.71721,2690.2,2689.7,3.71788]
[1739535358290,4.52244,2690.3,2689.8,3.71773]
[1739535358593,3.71726,2690.2,2689.7,4.81135659]
[1739535358793,3.71735,2690.1,2689.6,4.00743]
[1739535359096,3.7175,2690.0,2689.5,3.71814]
[1739535359818,3.7175,2690.0,2689.4,3.71821]
[1739535359959,3.71764,2689.9,2689.4,3.7182]
[1739535360157,7.807114,2689.9,2689.4,3.7182]
[1739535360386,3.71749,2690.0,2689.4,3.7182]
[1739535360664,7.43537,2689.9,2689.4,3.7182]
[1739535360879,3.71782,2689.8,2689.3,4.00793]
[1739535361085,3.71796,2689.7,2689.2,3.71856]
[1739535361321,3.71796,2689.7,2689.0,0.2895]
[1739535361519,3.71796,2689.7,2689.2,3.71849]
[1739535362264,7.43592,2689.7,2689.2,3.71849]
[1739535362581,7.43593,2689.7,2689.2,3.71849]
[1739535362759,4.46006825,2689.7,2689.0,4.00829]
[1739535362955,3.71846,2689.3,2688.8,0.2895]
[1739535363262,0.8053,2689.2,2688.6,3.71932]
[1739535363462,3.71899,2688.9,2688.4,3.71962]
[1739535363900,3.71899,2688.9,2688.2,4.00938]
[1739535364615,3.71888,2689.0,2688.4,3.71965]
[1739535364777,4.171231,2689.1,2688.4,3.71959]
[1739535364975,0.452381,2689.1,2688.6,3.7193]
[1739535365172,5.32,2689.4,2688.7,0.2895]
[1739535365376,0.74240601,2689.2,2688.8,3.71903]
[1739535365698,0.74240601,2689.2,2689.0,3.71884]
[1739535366013,5.32,2689.4,2688.7,4.00873]
[1739535366212,0.7807,2689.8,2689.3,3.71831]
[1739535366575,5.32,2690.2,2689.4,0.326683]
[1739535366775,0.7807,2690.1,2689.6,3.71802]
[1739535367098,3.71752,2690.0,2689.4,3.71828]
[1739535367301,0.52512914,2689.9,2689.4,3.71828]
[1739535367476,0.52512914,2689.9,2689.4,3.71821]
[1739535367682,3.71777,2689.8,2689.2,7.43699]
[1739535368004,4.14205991,2689.8,2689.2,3.71848]
[1739535368179,0.7807,2689.7,2689.2,3.71848]
[1739535369078,0.7807,2689.7,2689.3,3.71841]
[1739535369302,0.7807,2689.7,2689.2,3.71848]
[1739535369918,0.76238143,2689.6,2689.0,3.71878]
[1739535370093,0.76238143,2689.6,2689.0,7.43755]
[1739535370294,0.76238143,2689.6,2689.1,3.71859]
[1739535371016,3.71816,2689.5,2688.9,3.7189]
[1739535371582,0.7807,2689.3,2688.9,3.7189]
[1739535371783,0.7807,2689.3,2688.7,3.7192]
[1739535372018,1.230586,2689.3,2688.7,3.7192]
[1739535372219,4.49922,2689.3,2688.7,3.7192]
[1739535372586,4.49922,2689.3,2688.7,3.71919]
[1739535373125,4.49922,2689.3,2688.7,7.43837]
[1739535373290,4.49922,2689.3,2688.7,3.71918]
[1739535373491,4.700592,2689.2,2688.6,3.71928]
[1739535373816,4.700592,2689.2,2688.5,3.71946]
[1739535373817,4.700592,2689.2,2688.7,3.71924]
[1739535373998,0.981922,2689.2,2688.7,3.71924]
[1739535374205,0.981922,2689.2,2688.7,3.71919]
[1739535375531,0.7482983,2688.9,2688.7,3.71919]
[1739535375758,0.7482983,2688.9,2688.7,3.71918]
[1739535375935,0.7482983,2688.9,2688.8,3.71913]
[1739535376632,0.7482983,2688.9,2688.7,3.71918]
[1739535377953,0.7482983,2688.9,2688.5,3.71944]
[1739535378267,0.7482983,2688.9,2688.5,3.71946]
[1739535378398,0.7807,2688.8,2688.5,3.71946]
[1739535379234,0.7807,2688.8,2688.6,3.7194]
[1739535380332,9.0384,2689.4,2688.9,3.71899]
[1739535380333,0.7649,2689.0,2688.9,3.71899]
[1739535380535,2.28969659,2689.3,2689.0,3.71881]
[1739535380937,0.7649,2689.3,2689.0,3.71876]
[1739535381095,0.7649,2689.3,2688.9,3.71899]
[1739535381624,0.75753287,2689.1,2688.8,3.7191]
[1739535382213,0.75753287,2689.1,2688.7,3.71917]
[1739535382520,0.75753287,2689.1,2688.7,3.71916]
[1739535382721,1.28162016,2689.1,2688.7,7.43836]
[1739535383039,0.75753287,2689.1,2688.5,3.71946]
[1739535383367,0.75753287,2689.1,2688.6,3.71931]
[1739535383513,4.47625287,2689.1,2688.6,3.71931]
[1739535383714,5.37222916,2689.1,2688.6,3.71931]
[1739535384085,1.65350916,2689.1,2688.6,3.71931]
[1739535384252,5.37228916,2689.1,2688.6,3.71931]
[1739535385085,1.65350916,2689.1,2688.7,3.71925]
[1739535385222,1.65350916,2689.1,2688.3,7.21886586]
[1739535385578,0.75753287,2689.1,2688.4,0.72188659]
[1739535385752,0.75753287,2689.1,2688.8,3.71903]
[1739535386125,0.75753287,2689.1,2688.6,3.71929]
[1739535386478,4.47625287,2689.1,2688.6,3.71929]
[1739535387124,0.75753287,2689.1,2688.8,3.71903]
[1739535387328,0.75753287,2689.1,2688.8,7.43806]
[1739535387592,0.7649,2689.6,2688.8,1.033306]
[1739535387750,0.7649,2689.6,2688.8,4.00861]
[1739535387932,0.7649,2690.0,2689.5,3.71808]
[1739535388476,0.7601272,2689.9,2689.5,3.71808]
[1739535388995,5.37373392,2689.9,2689.3,7.72619]
[1739535389135,5.37373392,2689.9,2689.4,3.71827]
[1739535389654,1.65611392,2689.9,2689.7,3.71787]
[1739535389835,0.7601272,2689.9,2689.7,7.43564]
[1739535390036,0.7601272,2689.9,2689.7,3.71777]
[1739535390260,0.7601272,2689.9,2689.8,3.71774]
[1739535390449,0.7601272,2689.9,2689.7,3.71788]
[1739535390660,0.7601272,2689.9,2689.7,7.43568]
[1739535390904,0.7601272,2689.9,2689.7,7.4356]
[1739535391198,0.7601272,2689.9,2689.7,3.7178]
[1739535391402,0.7601272,2689.9,2689.5,3.71808]
[1739535391582,0.7601272,2689.9,2689.6,3.71799]
[1739535392597,0.7601272,2689.9,2689.7,3.71781]
[1739535392797,0.7601272,2689.9,2689.6,7.43593]
[1739535393294,0.7601272,2689.9,2689.6,3.71794]
[1739535393511,0.7601272,2689.9,2689.7,3.71785]
[1739535393708,0.7601272,2689.9,2689.6,3.71794]
[1739535393913,0.7649,2690.6,2690.1,3.71722]
[1739535394215,3.0,2690.5,2690.1,3.71722]
[1739535394416,3.71679,2690.5,2689.9,3.71749]
[1739535395013,3.71679,2690.5,2690.0,3.7174]
[1739535395505,0.75283307,2690.2,2689.9,3.71759]
[1739535395710,0.75283307,2690.2,2689.7,3.71778]
[1739535395908,0.8201,2690.1,2689.7,3.71778]
[1739535396073,0.8201,2690.1,2689.7,7.43558]
[1739535396271,0.8201,2690.1,2689.3,0.2895]
[1739535396485,4.5375,2690.1,2689.6,3.71801]
[1739535396841,4.5375,2690.1,2689.4,4.090127]
[1739535396842,8.25492,2690.1,2689.5,3.71807]
[1739535396996,3.71757,2690.0,2689.4,3.71822]
[1739535397200,3.71757,2690.0,2689.4,7.43641]
[1739535397541,3.71757,2690.0,2689.5,3.71815]
[1739535398524,0.74401914,2689.7,2689.5,3.71815]
[1739535398857,0.74401914,2689.7,2689.5,3.71806]
[1739535399105,0.74401914,2689.7,2689.4,3.71819]
[1739535399663,0.74401914,2689.7,2689.4,7.43642]
[1739535399922,0.74401914,2689.7,2689.2,3.71849]